bitfinex-derivatives/quotes_ETHF0:USTF0_20260115
["timestamp","ask_amount","ask_price","bid_price","bid_amount"]
[1768500511906,1.01535968,3303.8,3302.7,0.00454057]
[1768500512094,1.01535968,3303.7,3302.7,0.00454057]
[1768500512291,1.01535968,3303.6,3302.7,0.00454057]
[1768500512504,1.01535968,3303.5,3302.7,0.00454057]
[1768500512699,1.01535968,3303.4,3302.7,0.00454057]
[1768500512902,1.01535968,3303.3,3302.7,0.00454057]
[1768500513103,3.64291329,3303.9,3302.7,0.00454057]
[1768500513407,1.01542679,3303.8,3302.7,0.00454057]
[1768500513707,1.01542679,3303.7,3302.7,0.00454057]
[1768500514005,2.15060315,3304.3,3302.7,0.00454057]
[1768500514006,3.64684772,3304.3,3302.7,0.00454057]
[1768500514207,1.01589642,3304.2,3302.7,0.00454057]
[1768500514400,1.01589642,3304.1,3302.7,0.00454057]
[1768500514597,1.01589642,3304.0,3302.7,0.00454057]
[1768500514809,1.01589642,3303.9,3302.7,0.00454057]
[1768500515106,1.01589642,3303.8,3302.7,0.00454057]
[1768500515309,3.64684772,3304.3,3302.7,0.00454057]
[1768500515608,1.01538056,3304.2,3302.7,0.00454057]
[1768500515808,1.01538056,3304.1,3302.7,0.00454057]
[1768500516108,1.01538056,3304.0,3302.7,0.00454057]
[1768500516311,1.01538056,3303.9,3302.7,0.00454057]
[1768500516511,1.01538056,3303.8,3302.7,0.00454057]
[1768500516713,3.64684772,3304.3,3302.7,0.00454057]
[1768500517006,1.01527952,3304.2,3302.7,0.00454057]
[1768500517208,1.01527952,3304.1,3302.7,0.00454057]
[1768500517407,1.01527952,3304.0,3302.7,0.00454057]
[1768500517609,1.01527952,3303.9,3302.7,0.00454057]
[1768500517802,1.01527952,3303.8,3302.7,0.00454057]
[1768500518002,3.64684772,3304.3,3302.7,0.00454057]
[1768500518198,4.65807877,3304.2,3302.7,0.00454057]
[1768500518412,3.64291329,3304.0,3302.8,0.109]
[1768500518604,3.64291329,3303.8,3302.8,0.109]
[1768500518809,1.01516548,3303.7,3302.8,0.109]
[1768500519006,3.64291329,3303.5,3302.2,0.00281357]
[1768500519314,3.64291329,3303.3,3302.2,0.00281357]
[1768500519612,3.64291329,3303.1,3302.3,0.109]
[1768500520002,1.01458436,3303.0,3302.4,0.109]
[1768500520204,3.64291329,3303.1,3302.2,0.00281357]
[1768500520404,3.64291329,3303.1,3302.3,0.109]
[1768500520914,3.64291329,3303.1,3302.4,0.00237508]
[1768500522911,3.64291329,3303.1,3302.2,0.00281357]
[1768500523113,3.64291329,3303.1,3302.4,0.109]
[1768500523807,0.1514,3303.5,3301.2,3.52781517]
[1768500523999,0.1514,3303.5,3300.1,6.347]
[1768500524000,3.64291329,3303.3,3300.8,3.37630517]
[1768500524204,3.64291329,3302.8,3300.6,0.15153]
[1768500524408,3.64291329,3302.6,3300.9,0.109]
[1768500524612,3.64291329,3302.4,3300.9,0.109]
[1768500525111,0.00454057,3302.1,3300.9,3.64026417]
[1768500525713,3.64291329,3302.9,3301.0,3.37630517]
[1768500525912,3.64291329,3303.4,3301.5,3.37630517]
[1768500526107,1.0117953,3303.3,3301.6,3.48530517]
[1768500526310,3.64291329,3303.4,3301.6,3.63679517]
[1768500526608,1.01172758,3303.3,3301.6,3.63679517]
[1768500526813,3.64291329,3303.4,3301.6,3.63679517]
[1768500527106,1.0117297,3303.3,3301.6,3.63679517]
[1768500527308,3.64291329,3303.4,3302.0,1.46792386]
[1768500527513,1.01167176,3303.3,3302.0,1.46792386]
[1768500527713,3.64291329,3303.4,3302.0,1.46792386]
[1768500527913,1.01166664,3303.3,3302.0,1.46792386]
[1768500528114,3.64291329,3303.4,3302.0,1.46792386]
[1768500528316,1.01166593,3303.3,3302.0,1.46792386]
[1768500528516,3.64291329,3303.4,3302.1,0.109]
[1768500528717,1.01161929,3303.3,3302.1,0.109]
[1768500528916,3.64291329,3303.4,3302.1,0.109]
[1768500529107,1.0116191,3303.3,3302.1,0.109]
[1768500529311,3.64291329,3303.4,3302.1,0.109]
[1768500529505,3.64291329,3302.9,3301.0,0.15152]
[1768500529708,5.11083715,3302.4,3301.1,3.029]
[1768500529912,3.64291329,3302.3,3301.2,0.109]
[1768500530112,3.64291329,3302.3,3300.9,0.003439]
[1768500530314,3.64291329,3302.3,3301.3,0.109]
[1768500531217,3.64291329,3302.3,3300.9,0.003439]
[1768500531428,3.64291329,3302.3,3301.0,0.109]
[1768500531916,3.64291329,3302.3,3300.9,0.003439]
[1768500532118,3.64291329,3302.3,3301.0,0.109]
[1768500532417,3.64291329,3302.3,3300.9,3.032439]
[1768500532418,3.64291329,3302.3,3300.9,0.003439]
[1768500532624,3.64291329,3302.3,3301.1,0.109]
[1768500533821,3.64291329,3302.3,3300.9,0.003439]
[1768500533822,3.59262907,3302.1,3300.9,0.003439]
[1768500534327,3.59262907,3302.1,3301.0,0.108]
[1768500536919,3.59262907,3302.1,3300.1,0.15156]
[1768500537127,3.59262907,3301.9,3300.1,0.15156]
[1768500537428,3.59262907,3301.7,3300.2,0.108]
[1768500538013,3.59597367,3301.7,3300.2,0.11124459]
[1768500538429,3.59597367,3301.7,3300.6,0.00454057]
[1768500538723,3.59597367,3301.7,3300.6,0.108]
[1768500538928,3.59262907,3301.4,3300.2,0.00324459]
[1768500539127,3.59262907,3301.4,3300.3,0.108]
[1768500539622,0.00454057,3301.5,3300.3,3.40182063]
[1768500540023,0.00454057,3301.5,3300.4,0.15154]
[1768500540218,0.00454057,3301.5,3300.5,0.108]
[1768500540421,3.59716964,3301.5,3300.5,0.108]
[1768500540819,0.00454057,3301.5,3300.5,0.108]
[1768500541235,0.00454057,3301.5,3300.2,0.00324459]
[1768500541434,0.00454057,3301.5,3300.3,0.108]
[1768500547437,0.00454057,3301.5,3300.3,3.40182063]
[1768500549552,0.0033446,3301.7,3300.7,3.29382063]
[1768500549749,0.0033446,3301.7,3300.8,0.108]
[1768500554939,3.74746367,3301.7,3300.6,0.00454057]
[1768500555143,1.00939727,3301.6,3300.7,0.107]
[1768500555343,3.74746367,3301.7,3300.7,0.107]
[1768500555539,1.00951347,3301.6,3300.7,0.107]
[1768500555735,3.74746367,3301.7,3300.7,0.107]
[1768500555947,1.00964435,3301.6,3300.7,0.107]
[1768500556141,0.0033446,3301.7,3300.7,0.107]
[1768500558046,0.0033446,3301.7,3300.7,3.40082063]
[1768500559045,0.0033446,3301.7,3300.6,0.00454057]
[1768500559247,0.0033446,3301.7,3300.8,0.107]
[1768500559854,0.0033446,3301.7,3300.6,0.00454057]
[1768500560058,0.0033446,3301.7,3300.7,0.107]
[1768500562944,0.0033446,3301.7,3300.8,0.107]
[1768500563455,1.01417009,3301.6,3300.6,0.00454057]
[1768500563654,1.01417009,3301.5,3300.7,0.107]
[1768500563956,1.01417009,3301.4,3300.7,0.107]
[1768500564150,1.01417009,3301.3,3300.7,0.107]
[1768500564353,3.42167832,3301.6,3300.7,0.107]
[1768500564659,1.01409279,3301.5,3300.7,0.107]
[1768500564955,1.01409279,3301.4,3300.7,0.107]
[1768500565153,0.0033446,3301.7,3300.7,0.107]
[1768500565359,1.0141209,3301.6,3300.7,0.107]
[1768500565658,1.0141209,3301.5,3300.7,0.107]
[1768500565859,0.0033446,3301.7,3300.7,0.107]
[1768500566055,1.01398985,3301.6,3300.7,0.107]
[1768500566255,1.01398985,3301.5,3300.7,0.107]
[1768500566460,0.0033446,3301.7,3300.7,0.107]
[1768500566758,1.01379335,3301.6,3300.7,0.107]
[1768500566955,1.01379335,3301.5,3300.7,0.107]
[1768500567157,0.0033446,3301.7,3300.7,0.107]
[1768500567354,1.01379428,3301.6,3300.7,0.107]
[1768500567656,0.0033446,3301.7,3300.7,0.107]
[1768500567848,5.77331497,3302.6,3300.7,0.107]
[1768500568052,1.01406003,3302.5,3301.0,3.3925456]
[1768500568248,4.64070628,3302.4,3300.9,0.15152]
[1768500568451,1.01406003,3302.3,3301.0,0.106]
[1768500568656,4.64070628,3302.2,3301.1,0.106]
[1768500568851,1.01406003,3302.1,3301.1,0.106]
[1768500569050,1.01406003,3302.0,3301.1,0.106]
[1768500569255,3.62924821,3302.2,3301.1,0.106]
[1768500569558,4.64074161,3302.1,3301.2,0.106]
[1768500569759,1.01409536,3302.0,3301.3,0.106]
[1768500575662,3.62664625,3300.8,3298.5,7.04321656]
[1768500575862,1.46905751,3301.7,3298.4,3.3925456]
[1768500575863,3.62664625,3300.4,3298.6,0.106]
[1768500576062,3.62664625,3300.2,3298.6,0.106]
[1768500576263,4.64074161,3300.1,3298.6,0.106]
[1768500576463,1.01409536,3300.0,3298.6,0.106]
[1768500576669,1.01409536,3299.9,3298.6,0.109696]
[1768500576866,3.62664625,3300.1,3298.6,0.003696]
[1768500577066,0.00454057,3299.6,3298.7,0.106]
[1768500577268,0.00814047,3299.6,3298.7,0.106]
[1768500578266,0.00814047,3299.6,3298.6,0.003696]
[1768500580372,3.63478672,3299.6,3298.6,0.003696]
[1768500582469,9.63478672,3299.6,3297.8,0.15166]
[1768500582683,3.62664625,3298.1,3295.8,3.3925456]
[1768500582876,3.62664625,3297.9,3295.9,0.106]
[1768500583071,3.62664625,3297.9,3295.9,3.4985456]
[1768500583674,3.62664625,3297.5,3295.9,0.0030509]
[1768500583980,3.62664625,3297.1,3295.9,0.0030509]
[1768500584163,3.63033718,3297.1,3294.9,0.1518]
[1768500584475,3.62664625,3296.9,3295.1,3.5443356]
[1768500584770,0.00369093,3297.1,3295.5,3.3925456]
[1768500584975,0.00369093,3297.1,3295.7,3.3925456]
[1768500585171,0.00369093,3297.1,3295.7,3.39507448]
[1768500585564,0.00369093,3297.1,3295.8,3.3925456]
[1768500585765,3.62664625,3297.9,3295.8,3.3925456]
[1768500586176,3.62664625,3297.9,3295.9,0.105]
[1768500586680,3.62971809,3297.9,3295.9,0.105]
[1768500587175,3.62971809,3297.9,3295.7,0.00252888]
[1768500587381,3.62971809,3297.9,3295.8,0.105]
[1768500587882,3.62664625,3297.7,3295.8,0.105]
[1768500588181,3.62664625,3297.7,3295.8,3.4975456]
[1768500589780,0.00307184,3297.9,3295.7,0.00252888]
[1768500589781,3.62664625,3297.5,3295.7,0.00252888]
[1768500590083,3.62664625,3297.3,3295.8,0.105]
[1768500590267,0.15167,3297.7,3295.8,0.105]
[1768500590268,3.73064625,3297.7,3295.8,0.105]
[1768500592283,3.62664625,3297.7,3295.9,0.15175]
[1768500593670,3.58835999,3297.3,3295.7,0.00252888]
[1768500593876,3.58835999,3297.3,3295.8,0.105]
[1768500594386,44.38835999,3297.8,3295.8,0.105]
[1768500594581,3.58835999,3297.8,3296.0,0.15175]
[1768500594781,0.104,3297.7,3296.0,0.15175]
[1768500597586,0.103,3297.7,3296.0,0.15175]
[1768500597887,3.69135999,3297.8,3296.0,0.15175]
[1768500598087,3.58835999,3297.8,3296.0,0.15175]
[1768500598286,0.00307184,3297.9,3296.2,3.51621726]
[1768500598489,0.00307184,3297.9,3296.4,3.51621726]
[1768500598791,0.00307184,3297.9,3296.7,0.15171]
[1768500598992,0.00307184,3297.9,3296.8,0.105]
[1768500599384,0.00307184,3297.9,3296.9,0.105]
[1768500600394,0.00307184,3297.9,3296.1,0.15174]
[1768500600594,0.00307184,3297.9,3296.3,0.15173]
[1768500600784,3.59143183,3297.9,3296.4,0.105]
[1768500601297,0.00307184,3297.9,3296.5,3.66793726]
[1768500601600,0.00307184,3297.9,3296.6,6.80693726]
[1768500601783,0.00307184,3297.9,3296.7,3.034]
[1768500601982,0.00307184,3297.9,3296.8,0.105]
[1768500602281,0.00307184,3297.9,3296.9,0.105]
[1768500602480,3.59143183,3297.9,3296.0,3.034]
[1768500602688,3.58835999,3297.7,3296.1,0.105]
[1768500602894,3.58835999,3297.7,3295.7,0.00252888]
[1768500603093,3.58835999,3297.7,3295.8,3.139]
[1768500603290,1.00278528,3297.6,3295.7,0.00252888]
[1768500603499,3.58835999,3297.7,3295.8,3.138]
[1768500603690,1.00279248,3297.6,3295.8,3.28975]
[1768500603887,1.00279248,3297.6,3293.9,21.242]
[1768500603888,3.58835999,3297.4,3292.6,4.76162478]
[1768500604093,2.99821673,3295.1,3290.8,3.51621726]
[1768500604290,2.76545442,3294.8,3292.4,3.51621726]
[1768500604494,1.00277368,3294.7,3292.4,3.51621726]
[1768500604693,1.00277368,3294.6,3292.6,3.51621726]
[1768500604899,1.00277368,3294.5,3292.6,3.51621726]
[1768500605100,3.7682281,3294.4,3292.5,0.104]
[1768500605400,1.10577368,3294.3,3292.4,0.00290783]
[1768500605695,1.00277368,3294.2,3292.4,0.00290783]
[1768500605897,1.00277368,3294.1,3292.4,0.00290783]
[1768500606095,1.00277368,3294.0,3292.4,0.00290783]
[1768500606296,1.10577368,3293.9,3292.4,0.00290783]
[1768500606497,1.00277368,3293.8,3292.4,0.00290783]
[1768500606686,1.00277368,3293.8,3291.9,0.104]
[1768500606687,1.00277368,3293.7,3291.5,3.51621726]
[1768500606890,2.36224438,3293.5,3291.0,0.104]
[1768500607084,2.36224438,3293.3,3290.9,3.51621726]
[1768500607291,2.36224438,3293.1,3289.9,3.51621726]
[1768500607489,2.36224438,3292.9,3290.1,3.51621726]
[1768500607696,1.10577368,3292.8,3290.1,3.51892781]
[1768500607903,1.00277368,3292.7,3290.1,3.51892781]
[1768500608093,1.00277368,3292.6,3290.1,3.51892781]
[1768500608295,1.00277368,3292.5,3290.1,3.51892781]
[1768500608490,2.36224438,3292.9,3290.1,3.51892781]
[1768500608491,1.10577368,3292.4,3290.1,3.51892781]
[1768500608801,0.103,3292.3,3290.1,3.51892781]
[1768500609109,0.99043191,3292.2,3290.2,0.104]
[1768500609291,3.24206447,3292.1,3290.1,0.00271055]
[1768500609491,3.24203523,3292.0,3290.1,0.00271055]
[1768500609695,6.38103523,3291.9,3290.1,0.00271055]
[1768500609993,2.25341003,3291.7,3289.6,0.104]
[1768500610196,0.9886252,3291.6,3289.5,3.51621726]
[1768500610390,40.80318807,3292.4,3289.7,3.51621726]
[1768500610594,0.00318807,3292.4,3289.9,3.51621726]
[1768500610893,0.00318807,3292.4,3290.1,3.51621726]
[1768500611094,0.00318807,3292.4,3290.1,3.51835739]
[1768500611596,0.00318807,3292.4,3290.3,3.51621726]
[1768500611792,2.28546107,3294.7,3290.5,3.51621726]
[1768500611992,0.98707356,3294.6,3290.8,3.51621726]
[1768500612190,40.8,3295.2,3291.3,3.51621726]
[1768500612396,40.8,3295.2,3291.6,0.15195]
[1768500612704,0.103,3295.1,3291.7,3.62021726]
[1768500612901,0.10531348,3295.1,3291.9,3.51621726]
[1768500613194,0.00231348,3295.1,3291.9,3.51621726]
[1768500613397,0.00231348,3295.1,3291.9,9.51621726]
[1768500613591,0.00231348,3295.1,3292.0,3.66814726]
[1768500614002,0.00231348,3295.1,3292.2,3.51621726]
[1768500614202,0.00231348,3295.1,3292.4,3.51621726]
[1768500616098,0.00231348,3295.1,3292.5,3.51621726]
[1768500616292,0.00231348,3295.1,3292.6,6.0]
[1768500616496,2.64260719,3297.1,3293.0,3.51621726]
[1768500616697,41.89168752,3297.0,3293.3,3.51621726]
[1768500616999,0.98968752,3296.9,3293.5,3.51621726]
[1768500617202,0.98968752,3296.8,3293.5,3.51621726]
[1768500617402,0.98968752,3296.7,3293.5,3.51621726]
[1768500617601,0.102,3296.6,3293.5,3.51621726]
[1768500618310,0.00224063,3296.8,3293.5,3.51621726]
[1768500618607,1.0921462,3296.7,3293.5,3.51621726]
[1768500618806,0.102,3296.7,3293.5,3.51621726]
[1768500619309,2.67052839,3296.5,3293.7,3.51621726]
[1768500619511,0.98993893,3296.4,3293.7,3.51621726]
[1768500619712,0.102,3296.3,3293.7,3.51621726]
[1768500619898,0.98993893,3296.2,3293.7,3.51621726]
[1768500620302,0.102,3296.3,3293.7,3.51621726]
[1768500620795,2.77252839,3296.5,3293.7,3.51621726]
[1768500621000,0.99027508,3296.4,3293.7,3.51621726]
[1768500621200,0.99027508,3296.3,3293.7,3.51621726]
[1768500621398,0.15395063,3296.8,3293.7,3.66806726]
[1768500621607,0.9906531,3296.7,3294.8,3.44127628]
[1768500621808,1.58889399,3296.2,3294.9,0.104]
[1768500622107,0.9906531,3296.1,3294.9,0.1061361]
[1768500622307,0.9906531,3296.0,3294.9,3.54741238]
[1768500622508,0.9906531,3295.9,3294.9,3.54741238]
[1768500622710,0.9906531,3295.8,3294.9,3.54741238]
[1768500622907,1.58889399,3296.4,3294.9,3.54741238]
[1768500623108,1.09309486,3296.3,3294.9,3.54741238]
[1768500623407,1.09309486,3296.2,3294.9,3.54741238]
[1768500623610,1.09309486,3296.1,3294.9,3.54741238]
[1768500623911,1.09309486,3296.0,3294.9,3.54741238]
[1768500624108,1.09309486,3295.9,3294.9,3.54741238]
[1768500624296,1.58889399,3296.4,3294.9,3.54741238]
[1768500624499,1.09304649,3296.3,3294.9,3.54741238]
[1768500624708,1.09304649,3296.2,3294.9,3.54741238]
[1768500624907,1.09304649,3296.1,3294.9,3.54741238]
[1768500625109,1.09304649,3296.0,3294.9,3.54741238]
[1768500625303,1.09304649,3295.9,3294.9,3.54741238]
[1768500625613,1.59113462,3296.8,3294.9,3.54741238]
[1768500625815,1.09298257,3296.7,3294.9,3.54741238]
[1768500626000,1.59113462,3296.8,3295.0,3.62128707]
[1768500626001,0.00224063,3296.8,3295.0,3.62128707]
[1768500626207,2.91324794,3297.4,3295.4,3.62128707]
[1768500626409,2.91324794,3297.4,3295.6,3.62128707]
[1768500627206,2.91568024,3297.4,3295.6,3.62128707]
[1768500628500,1.58889399,3297.2,3295.6,3.62128707]
[1768500628705,1.58889399,3297.0,3295.7,0.103]
[1768500628905,1.58889399,3296.9,3295.7,0.103]
[1768500629405,0.102,3297.0,3295.7,0.103]
[1768500629406,1.58889399,3296.8,3295.7,0.103]
[1768500629711,1.58889399,3297.1,3295.7,0.103]
[1768500630108,0.15169,3297.2,3295.7,0.103]
[1768500630509,2.91568024,3297.4,3295.7,0.103]
[1768500631003,2.91568024,3297.4,3295.7,3.72428707]
[1768500632010,2.91568024,3297.4,3295.7,3.87604707]
[1768500632206,2.91568024,3297.4,3295.9,3.62128707]
[1768500632510,0.25364,3298.4,3295.9,3.62128707]
[1768500632511,2.27103737,3298.4,3295.9,3.62128707]
[1768500632704,0.15164,3298.4,3295.9,3.77303707]
[1768500632903,0.15164,3298.3,3296.1,3.62128707]
[1768500633210,2.27103737,3298.3,3296.2,3.139]
[1768500633603,2.37561412,3298.3,3296.2,3.139]
[1768500634009,0.15521675,3298.3,3296.3,3.62128707]
[1768500634601,0.15521675,3298.3,3297.0,0.00455518]
[1768500634807,0.15521675,3298.3,3297.1,0.103]
[1768500635111,2.27461412,3298.3,3297.1,0.103]
[1768500635314,0.15521675,3298.3,3297.1,0.103]
[1768500635510,2.27461412,3298.3,3297.1,0.103]
[1768500636412,0.15521675,3298.3,3297.1,0.103]
[1768500636910,0.25621675,3298.3,3297.1,0.103]
[1768500637414,2.37561412,3298.3,3297.1,0.103]
[1768500638122,1.09255232,3298.2,3297.1,0.103]
[1768500638321,1.09255232,3298.1,3297.1,0.103]
[1768500638510,1.09255232,3298.0,3297.1,0.103]
[1768500638711,1.09255232,3297.9,3297.1,0.103]
[1768500638915,1.09255232,3297.8,3297.1,0.103]
[1768500639117,1.24422232,3297.7,3295.8,3.62128707]
[1768500639327,3.21194969,3297.6,3295.9,0.102]
[1768500639524,1.09255232,3297.5,3295.9,3.72328707]
[1768500639821,0.15169,3297.3,3296.0,0.102]
[1768500640021,1.09255232,3297.2,3295.3,3.62128707]
[1768500640216,0.15172,3296.6,3295.2,3.035]
[1768500640424,2.11939737,3296.3,3295.3,3.72328707]
[1768500640723,3.3609276,3297.7,3295.3,3.72328707]
[1768500640724,2.11939737,3297.1,3295.3,3.72328707]
[1768500641419,0.00455518,3296.5,3295.3,3.72328707]
[1768500643509,0.00455518,3296.5,3295.5,3.62128707]
[1768500643709,2.11939737,3296.9,3295.5,3.62128707]
[1768500644013,2.11939737,3296.8,3295.6,0.10655518]
[1768500644609,2.11939737,3297.0,3295.7,3.62128707]
[1768500645017,2.11939737,3297.1,3295.8,3.62128707]
[1768500645218,2.11939737,3297.0,3295.8,3.62128707]
[1768500646110,2.11939737,3296.9,3295.8,3.62128707]
[1768500646323,2.11939737,3296.8,3295.9,0.102]
[1768500646618,2.11939737,3296.9,3295.9,0.102]
[1768500647011,2.11939737,3296.7,3296.0,0.102]
[1768500647211,2.11939737,3296.6,3296.1,0.102]
[1768500647412,2.11939737,3296.6,3296.2,0.102]
[1768500649317,2.11939737,3296.4,3295.6,0.00455518]
[1768500649815,2.11939737,3296.1,3295.7,0.102]
[1768500650216,2.11939737,3296.0,3295.7,0.102]
[1768500650421,2.11939737,3295.9,3295.7,0.102]
[1768500650622,2.12202377,3295.9,3295.7,0.102]
[1768500651120,0.0026264,3295.9,3295.7,0.102]
[1768500651323,2.12202377,3295.9,3295.7,0.102]
[1768500651718,0.0026264,3295.9,3294.3,3.33294493]
[1768500651919,0.0026264,3295.9,3295.0,3.43494493]
[1768500652822,0.00455518,3296.1,3295.0,3.33294493]
[1768500653023,0.98994253,3296.0,3295.0,3.33294493]
[1768500653322,0.00455518,3296.1,3295.1,0.102]
[1768500653518,0.9851424,3296.0,3295.1,0.102]
[1768500653718,0.9851424,3295.9,3295.1,0.102]
[1768500654025,0.0033334,3296.0,3295.1,0.102]
[1768500654329,0.98512547,3295.9,3295.1,0.102]
[1768500654516,0.98507863,3295.8,3293.3,3.032]
[1768500654713,1.13684863,3295.7,3295.0,0.102]
[1768500654927,0.98507863,3295.6,3294.0,3.33294493]
[1768500655127,0.98507863,3295.5,3294.0,3.33294493]
[1768500655330,0.98507863,3295.4,3293.5,3.33294493]
[1768500655533,0.98507863,3295.3,3293.6,3.137]
[1768500655826,0.98507863,3295.2,3293.6,3.137]
[1768500656027,1.13686863,3295.1,3293.6,3.13950656]
[1768500656227,0.00455518,3294.8,3293.6,0.00250656]
[1768500656429,0.98507863,3294.7,3293.7,0.101]
[1768500656623,0.98507863,3294.6,3293.7,0.101]
[1768500656927,0.98507863,3294.5,3293.7,0.101]
[1768500657129,0.98507863,3294.4,3293.7,0.101]
[1768500657319,0.00455518,3294.8,3293.6,0.00250656]
[1768500657520,3.32279071,3294.6,3293.6,0.101]
[1768500657721,0.98164154,3294.5,3293.6,0.101]
[1768500657920,0.98164154,3294.4,3293.6,0.101]
[1768500658123,0.98164154,3294.3,3293.6,0.101]
[1768500658426,0.98164154,3294.2,3293.6,0.10391247]
[1768500658627,0.15181,3294.7,3293.6,0.10391247]
[1768500658815,0.98036644,3294.6,3293.6,0.10391247]
[1768500659021,0.98036644,3294.5,3293.6,0.10391247]
[1768500659234,3.32734589,3294.8,3293.6,0.10391247]
[1768500659530,0.9797967,3294.7,3293.6,0.10391247]
[1768500659826,0.00455518,3294.8,3293.6,0.10391247]
[1768500660031,0.97983764,3294.7,3293.7,0.101]
[1768500660232,0.00455518,3294.8,3293.7,0.101]
[1768500660423,0.97967048,3294.7,3293.7,0.101]
[1768500660625,0.00455518,3294.8,3293.7,0.101]
[1768500660821,0.97967236,3294.7,3293.6,0.00291247]
[1768500661022,0.00455518,3294.8,3293.6,0.00291247]
[1768500661230,0.00455518,3294.8,3293.5,0.101]
[1768500661231,4.30244407,3294.7,3293.5,0.101]
[1768500661424,0.97879859,3294.6,3293.5,0.101]
[1768500661626,0.97879859,3294.5,3293.5,0.101]
[1768500661822,0.97879859,3294.4,3293.5,0.101]
[1768500662025,0.00455518,3294.8,3293.5,3.43394493]
[1768500662324,0.00455518,3294.8,3293.5,3.4370114]
[1768500662521,0.00455518,3294.8,3293.5,3.3360114]
[1768500662828,0.00455518,3294.8,3293.6,0.101]
[1768500664433,0.00455518,3294.8,3293.6,3.43394493]
[1768500666939,0.15176,3295.8,3293.6,3.43394493]
[1768500667240,0.97913421,3295.7,3293.6,3.43394493]
[1768500667441,0.97913421,3295.6,3293.6,3.43394493]
[1768500667638,0.97913421,3295.5,3293.6,3.43394493]
[1768500667936,0.15176,3295.8,3293.6,3.43394493]
[1768500668139,0.97946287,3295.7,3293.8,3.33294493]
[1768500668343,0.1,3295.9,3293.8,3.33294493]
[1768500668537,0.97997413,3295.8,3294.0,3.33294493]
[1768500668732,0.0033334,3296.0,3294.3,3.33294493]
[1768500669044,0.0033334,3296.0,3294.4,0.101]
[1768500669245,0.0033334,3296.0,3294.6,0.00455518]
[1768500669538,0.0033334,3296.0,3294.6,3.33750011]
[1768500673956,0.0033334,3296.0,3294.7,0.101]
[1768500675856,0.0033334,3296.0,3294.6,3.33750011]
[1768500676055,0.0033334,3296.0,3294.7,0.1]
[1768500679350,0.98396829,3295.9,3294.7,0.1]
[1768500679549,0.15176,3295.8,3294.6,0.00455518]
[1768500679756,0.98368981,3295.7,3294.6,0.1]
[1768500679954,0.98824499,3295.6,3294.6,0.1]
[1768500680266,0.98368981,3295.5,3294.6,0.1]
[1768500680963,0.00455518,3295.6,3294.6,0.1]
[1768500683456,0.00455518,3295.6,3294.6,3.63536389]
[1768500684765,0.00455518,3295.6,3294.7,0.1]
[1768500685960,0.00455518,3295.6,3294.2,3.30962352]
[1768500686165,0.98231947,3295.5,3294.3,0.1]
[1768500686369,0.982427,3295.4,3294.4,0.1]
[1768500686567,0.00455518,3295.6,3293.7,3.30962352]
[1768500686568,0.15178,3295.2,3293.7,3.30962352]
[1768500686763,1.13412566,3295.1,3293.5,0.00306647]
[1768500686968,0.98233566,3295.0,3293.8,0.1]
[1768500687163,0.98233566,3294.9,3293.8,0.1]
[1768500687362,0.98233566,3294.8,3293.8,0.1]
[1768500687558,0.15179,3295.1,3293.8,0.1]
[1768500687763,0.98229657,3295.0,3293.8,0.1]
[1768500687955,0.1518,3294.8,3293.5,0.00306647]
[1768500688157,0.98229657,3294.7,3293.8,0.1]
[1768500688361,0.98229657,3294.6,3293.8,0.1]
[1768500688562,44.15112426,3295.5,3293.8,0.1]
[1768500688763,0.98261141,3295.4,3293.8,3.40962352]
[1768500688966,0.98261141,3295.3,3293.8,3.40962352]
[1768500689164,0.98261141,3295.2,3293.8,3.40962352]
[1768500689365,0.98261141,3295.1,3293.5,0.00306647]
[1768500689572,1.13440141,3295.0,3293.6,0.1]
[1768500689874,3.35112426,3294.8,3292.8,3.30962352]
[1768500690067,3.35112426,3294.8,3293.1,0.1]
[1768500690068,0.15184,3294.0,3293.1,0.1]
[1768500690264,0.98261141,3293.9,3292.9,0.1]
[1768500690463,0.98261141,3293.8,3292.8,0.1]
[1768500690659,0.98261141,3293.7,3292.8,0.1]
[1768500690865,0.15184,3294.0,3292.8,0.10382412]
[1768500691165,0.00455518,3293.6,3292.8,0.10382412]
[1768500691371,0.00799299,3293.6,3292.8,0.10382412]
[1768500691775,0.15181,3294.7,3292.8,3.41344764]
[1768500692074,0.98103682,3294.6,3292.8,3.41344764]
[1768500692266,0.98103682,3294.5,3292.8,3.41344764]
[1768500692466,0.98103682,3294.4,3292.8,0.00382412]
[1768500692666,1.13286682,3294.3,3292.9,0.099]
[1768500692866,0.98103682,3294.2,3292.9,0.099]
[1768500693066,0.00310321,3294.3,3293.0,3.30962352]
[1768500693263,0.00310321,3294.3,3293.2,0.00306647]
[1768500693474,0.00310321,3294.3,3293.3,0.00306647]
[1768500693668,0.00310321,3294.3,3293.1,0.00306647]
[1768500693872,0.00310321,3294.3,3293.2,0.099]
[1768500694172,0.00310321,3294.3,3293.0,3.30962352]
[1768500694475,0.98038904,3294.2,3292.8,0.00382412]
[1768500694772,0.98038904,3294.1,3292.9,0.099]
[1768500694974,0.98038904,3294.0,3292.9,0.099]
[1768500695173,0.00310321,3294.3,3292.9,0.099]
[1768500695369,0.97984183,3294.2,3292.9,0.099]
[1768500695566,0.97984183,3294.1,3292.9,0.099]
[1768500695765,0.00310321,3294.3,3292.9,3.41168999]
[1768500695964,0.00310321,3294.3,3292.9,3.40862352]
[1768500696160,0.00310321,3294.3,3292.9,3.41168999]
[1768500697801,0.00310321,3294.3,3292.9,0.099]
[1768500698282,0.00310321,3294.3,3293.0,0.099]
[1768500698670,0.97956985,3294.2,3292.8,0.00382412]
[1768500698971,0.97956985,3294.1,3292.8,0.00382412]
[1768500699174,0.97956985,3294.0,3292.9,0.099]
[1768500699485,3.50605747,3294.3,3292.9,0.099]
[1768500699670,4.58014874,3294.2,3292.8,0.00382412]
[1768500699974,0.15186,3293.5,3292.4,0.099]
[1768500700375,0.15188,3293.2,3291.5,3.037]
[1768500700573,0.97844884,3293.1,3291.6,0.099]
[1768500700874,4.4814631,3293.0,3290.5,3.40862352]
[1768500701078,0.97844884,3292.9,3291.0,3.30962352]
[1768500701283,0.098,3293.3,3291.9,0.01766077]
[1768500701475,0.97752981,3293.2,3291.9,0.01766077]
[1768500701675,41.77752981,3293.1,3291.9,0.01766077]
[1768500701884,40.8,3293.1,3291.9,0.00286054]